[Event "Titled Tuesday Blitz May 31 Early 2022"]
[White "Nasir, Zehn"]
[Black "Eljanov, Pavel"]
[WhiteFideId "2613239"]
[BlackFideId "14102951"]
[WhiteElo "1993"]
[BlackElo "2601"]
[Result "0-1"]
[Round "07"]
[TimeControl "180+1"]
[Date "2022.05.31"]
[WhiteClock "0:00:05"]
[BlackClock "0:00:19"]

1. d4 {[%clk 0:03:00]}  d5 {[%clk 0:02:57]} 2. Bf4 {[%clk 0:03:01]}  Nf6 {[%clk 0:02:54]} 3. e3 {[%clk 0:03:01]}  c5 {[%clk 0:02:54]} 4. c3 {[%clk 0:03:01]}  Nc6 {[%clk 0:02:52]} 5. Nd2 {[%clk 0:03:00]}  Bf5 {[%clk 0:02:49]} 6. Qb3 {[%clk 0:02:58]}  Qd7 {[%clk 0:02:47]} 7. Ngf3 {[%clk 0:02:49]}  c4 {[%clk 0:02:43]} 8. Qd1 {[%clk 0:02:32]}  h6 {[%clk 0:02:37]} 9. Be2 {[%clk 0:02:30]}  e6 {[%clk 0:02:28]} 10. O-O {[%clk 0:02:28]}  Bd6 {[%clk 0:02:27]} 11. Ne5 {[%clk 0:02:12]}  Qc7 {[%clk 0:02:22]} 12. Ndf3 {[%clk 0:02:07]}  g5 {[%clk 0:02:10]} 13. Bg3 {[%clk 0:01:50]}  g4 {[%clk 0:02:09]} 14. Nh4 {[%clk 0:01:30]}  Nxe5 {[%clk 0:02:09]} 15. dxe5 {[%clk 0:01:30]}  Bxe5 {[%clk 0:02:10]} 16. Nxf5 {[%clk 0:01:30]}  exf5 {[%clk 0:02:10]} 17. Qa4+ {[%clk 0:01:17]}  Kf8 {[%clk 0:02:10]} 18. Rfd1 {[%clk 0:01:06]}  Kg7 {[%clk 0:02:05]} 19. Bxe5 {[%clk 0:00:54]}  Qxe5 {[%clk 0:02:04]} 20. Rd4 {[%clk 0:00:55]}  h5 {[%clk 0:02:01]} 21. Qb5 {[%clk 0:00:51]}  a6 {[%clk 0:01:58]} 22. Qa5 {[%clk 0:00:44]}  h4 {[%clk 0:01:46]} 23. Rad1 {[%clk 0:00:23]}  g3 {[%clk 0:01:41]} 24. Rf4 {[%clk 0:00:21]}  gxf2+ {[%clk 0:01:21]} 25. Kxf2 {[%clk 0:00:20]}  Rh6 {[%clk 0:00:53]} 26. Bf3 {[%clk 0:00:16]}  b6 {[%clk 0:00:49]} 27. Qa4 {[%clk 0:00:13]}  Re8 {[%clk 0:00:48]} 28. Re1 {[%clk 0:00:12]}  a5 {[%clk 0:00:42]} 29. Qc2 {[%clk 0:00:12]}  Ne4+ {[%clk 0:00:41]} 30. Bxe4 {[%clk 0:00:12]}  fxe4 {[%clk 0:00:42]} 31. Kg1 {[%clk 0:00:12]}  Ree6 {[%clk 0:00:37]} 32. Ref1 {[%clk 0:00:12]}  Ref6 {[%clk 0:00:37]} 33. Qf2 {[%clk 0:00:11]}  Rxf4 {[%clk 0:00:36]} 34. Qxf4 {[%clk 0:00:12]}  Qxf4 {[%clk 0:00:35]} 35. Rxf4 {[%clk 0:00:12]}  Kg6 {[%clk 0:00:22]} 36. Rg4+ {[%clk 0:00:11]}  Kf5 {[%clk 0:00:22]} 37. Rg8 {[%clk 0:00:11]}  h3 {[%clk 0:00:18]} 38. g4+ {[%clk 0:00:08]}  Ke5 {[%clk 0:00:19]} 39. g5 {[%clk 0:00:07]}  Rh4 {[%clk 0:00:18]} 40. Kf2 {[%clk 0:00:07]}  Rg4 {[%clk 0:00:18]} 41. Rb8 {[%clk 0:00:06]}  Rg2+ {[%clk 0:00:17]} 42. Ke1 {[%clk 0:00:05]}  Rxb2 {[%clk 0:00:18]} 43. Rf8 {[%clk 0:00:04]}  Rxh2 {[%clk 0:00:17]} 44. Rxf7 {[%clk 0:00:05]}  Rg2 {[%clk 0:00:17]} 45. Rh7 {[%clk 0:00:04]}  h2 {[%clk 0:00:17]} 46. Kf1 {[%clk 0:00:03]}  Rg1+ {[%clk 0:00:17]} 47. Kf2 {[%clk 0:00:04]}  h1=Q {[%clk 0:00:18]} 48. Rxh1 {[%clk 0:00:04]}  Rxh1 {[%clk 0:00:19]} 49. Kg2 {[%clk 0:00:04]}  Rh5 {[%clk 0:00:19]} 50. g6 {[%clk 0:00:05]}  Rg5+ {[%clk 0:00:19]} 0-1


[Site "https://www.chess.com"]

[Event "Titled Tuesday Blitz May 31 Early 2022"]
[White "Oparin, Grigoriy"]
[Black "Sadhwani, Raunak"]
[WhiteFideId "24125890"]
[BlackFideId "35093487"]
[WhiteElo "2665"]
[BlackElo "2616"]
[Result "1-0"]
[Round "07"]
[TimeControl "180+1"]
[Date "2022.05.31"]
[WhiteClock "0:01:08"]
[BlackClock "0:01:20"]

1. g3 {[%clk 0:03:00]}  e5 {[%clk 0:02:58]} 2. c4 {[%clk 0:03:00]}  c6 {[%clk 0:02:56]} 3. d4 {[%clk 0:02:57]}  e4 {[%clk 0:02:56]} 4. d5 {[%clk 0:02:58]}  Bb4+ {[%clk 0:02:51]} 5. Bd2 {[%clk 0:02:57]}  Qe7 {[%clk 0:02:50]} 6. a3 {[%clk 0:02:53]}  Bxd2+ {[%clk 0:02:47]} 7. Qxd2 {[%clk 0:02:54]}  cxd5 {[%clk 0:02:47]} 8. cxd5 {[%clk 0:02:54]}  d6 {[%clk 0:02:47]} 9. Nc3 {[%clk 0:02:53]}  Nf6 {[%clk 0:02:48]} 10. Bg2 {[%clk 0:02:52]}  O-O {[%clk 0:02:48]} 11. Nh3 {[%clk 0:02:49]}  Na6 {[%clk 0:02:47]} 12. b4 {[%clk 0:02:48]}  h6 {[%clk 0:02:46]} 13. O-O {[%clk 0:02:47]}  Bd7 {[%clk 0:02:46]} 14. Rac1 {[%clk 0:02:44]}  Rfe8 {[%clk 0:02:46]} 15. e3 {[%clk 0:02:43]}  g5 {[%clk 0:02:42]} 16. Kh1 {[%clk 0:02:16]}  Bf5 {[%clk 0:02:41]} 17. Ng1 {[%clk 0:02:15]}  Nd7 {[%clk 0:02:41]} 18. Nge2 {[%clk 0:02:07]}  Bg6 {[%clk 0:02:31]} 19. Nd4 {[%clk 0:02:07]}  g4 {[%clk 0:02:28]} 20. Nde2 {[%clk 0:02:01]}  Ne5 {[%clk 0:02:18]} 21. Nf4 {[%clk 0:01:54]}  f5 {[%clk 0:02:16]} 22. Nb5 {[%clk 0:01:47]}  Bf7 {[%clk 0:02:11]} 23. Rc2 {[%clk 0:01:43]}  h5 {[%clk 0:01:59]} 24. h4 {[%clk 0:01:37]}  gxh3 {[%clk 0:01:38]} 25. Bxh3 {[%clk 0:01:37]}  Qg5 {[%clk 0:01:38]} 26. Nxd6 {[%clk 0:01:31]}  Nf3 {[%clk 0:01:32]} 27. Qc3 {[%clk 0:01:26]}  h4 {[%clk 0:01:28]} 28. gxh4 {[%clk 0:01:12]}  Qxh4 {[%clk 0:01:20]} 29. Nxf5 {[%clk 0:01:11]}  Qh7 {[%clk 0:01:20]} 30. Qf6 {[%clk 0:01:08]} 1-0


[Site "https://www.chess.com"]

[Event "Titled Tuesday Blitz May 31 Early 2022"]
[White "Perez Gormaz, Matias"]
[Black "Derraugh, Geordie"]
[WhiteFideId "3406342"]
[BlackFideId "2603950"]
[WhiteElo "2341"]
[BlackElo "2116"]
[Result "0-1"]
[Round "07"]
[TimeControl "180+1"]
[Date "2022.06.01"]
[WhiteClock "0:00:02"]
[BlackClock "0:00:05"]

1. e4 {[%clk 0:03:00]}  c5 {[%clk 0:02:59]} 2. Nf3 {[%clk 0:03:01]}  d6 {[%clk 0:03:00]} 3. d4 {[%clk 0:03:00]}  cxd4 {[%clk 0:03:01]} 4. Qxd4 {[%clk 0:03:00]}  Nc6 {[%clk 0:03:01]} 5. Bb5 {[%clk 0:03:01]}  Bd7 {[%clk 0:03:01]} 6. Bxc6 {[%clk 0:03:01]}  bxc6 {[%clk 0:03:02]} 7. c4 {[%clk 0:03:00]}  e5 {[%clk 0:03:01]} 8. Qd3 {[%clk 0:03:00]}  h6 {[%clk 0:02:59]} 9. Nc3 {[%clk 0:02:57]}  Qc7 {[%clk 0:02:58]} 10. O-O {[%clk 0:02:49]}  Nf6 {[%clk 0:02:58]} 11. h3 {[%clk 0:02:44]}  Be7 {[%clk 0:02:59]} 12. Be3 {[%clk 0:02:44]}  O-O {[%clk 0:02:59]} 13. c5 {[%clk 0:02:38]}  dxc5 {[%clk 0:02:46]} 14. Na4 {[%clk 0:02:37]}  Rad8 {[%clk 0:02:36]} 15. Qc2 {[%clk 0:02:34]}  Qa5 {[%clk 0:01:55]} 16. Nxc5 {[%clk 0:02:32]}  Bc8 {[%clk 0:01:47]} 17. Nxe5 {[%clk 0:02:28]}  Qc7 {[%clk 0:01:17]} 18. Nf3 {[%clk 0:02:20]}  Rfe8 {[%clk 0:01:14]} 19. Rfe1 {[%clk 0:02:19]}  Bd6 {[%clk 0:01:10]} 20. Rac1 {[%clk 0:02:17]}  Nh5 {[%clk 0:01:02]} 21. Nb3 {[%clk 0:01:36]}  Bd7 {[%clk 0:00:52]} 22. Nbd4 {[%clk 0:01:33]}  c5 {[%clk 0:00:45]} 23. Nb3 {[%clk 0:01:27]}  Ba4 {[%clk 0:00:45]} 24. Qc4 {[%clk 0:01:23]}  Bxb3 {[%clk 0:00:37]} 25. axb3 {[%clk 0:01:24]}  Qb7 {[%clk 0:00:28]} 26. Bxc5 {[%clk 0:01:20]}  Bxc5 {[%clk 0:00:28]} 27. Qxc5 {[%clk 0:01:21]}  Nf4 {[%clk 0:00:29]} 28. Qc7 {[%clk 0:01:13]}  Qxc7 {[%clk 0:00:15]} 29. Rxc7 {[%clk 0:01:14]}  Rb8 {[%clk 0:00:15]} 30. Re3 {[%clk 0:01:11]}  Rb4 {[%clk 0:00:16]} 31. Nd2 {[%clk 0:01:03]}  Rd4 {[%clk 0:00:15]} 32. Nc4 {[%clk 0:00:55]}  Rexe4 {[%clk 0:00:13]} 33. Rxe4 {[%clk 0:00:53]}  Rxe4 {[%clk 0:00:13]} 34. Rxa7 {[%clk 0:00:54]}  Re1+ {[%clk 0:00:14]} 35. Kh2 {[%clk 0:00:52]}  Re2 {[%clk 0:00:14]} 36. Kg3 {[%clk 0:00:45]}  g5 {[%clk 0:00:10]} 37. h4 {[%clk 0:00:44]}  Nd3 {[%clk 0:00:09]} 38. hxg5 {[%clk 0:00:43]}  hxg5 {[%clk 0:00:09]} 39. Nd6 {[%clk 0:00:38]}  Rxf2 {[%clk 0:00:06]} 40. Ne4 {[%clk 0:00:30]}  Rf5 {[%clk 0:00:05]} 41. Nd6 {[%clk 0:00:23]}  Rd5 {[%clk 0:00:05]} 42. Nxf7 {[%clk 0:00:20]}  Nxb2 {[%clk 0:00:05]} 43. Kg4 {[%clk 0:00:16]}  Rb5 {[%clk 0:00:04]} 44. Nxg5 {[%clk 0:00:09]}  Rxb3 {[%clk 0:00:03]} 45. Kh5 {[%clk 0:00:10]}  Kf8 {[%clk 0:00:02]} 46. g4 {[%clk 0:00:08]}  Rg3 {[%clk 0:00:02]} 47. Ne6+ {[%clk 0:00:07]}  Kg8 {[%clk 0:00:02]} 48. g5 {[%clk 0:00:06]}  Nd3 {[%clk 0:00:02]} 49. Kh6 {[%clk 0:00:03]}  Rh3+ {[%clk 0:00:03]} 50. Kg6 {[%clk 0:00:04]}  Ne5+ {[%clk 0:00:03]} 51. Kf5 {[%clk 0:00:04]}  Nf3 {[%clk 0:00:03]} 52. Kf6 {[%clk 0:00:03]}  Nh4 {[%clk 0:00:02]} 53. Ra8+ {[%clk 0:00:02]}  Kh7 {[%clk 0:00:03]} 54. Ra7+ {[%clk 0:00:03]}  Kg8 {[%clk 0:00:03]} 55. Nf4 {[%clk 0:00:03]}  Rf3 {[%clk 0:00:03]} 56. Ra8+ {[%clk 0:00:04]}  Kh7 {[%clk 0:00:03]} 57. Ra7+ {[%clk 0:00:04]}  Kg8 {[%clk 0:00:03]} 58. Ke5 {[%clk 0:00:05]}  Rf1 {[%clk 0:00:03]} 59. Nd5 {[%clk 0:00:05]}  Nf3+ {[%clk 0:00:03]} 60. Ke6 {[%clk 0:00:04]}  Nxg5+ {[%clk 0:00:04]} 61. Kd6 {[%clk 0:00:05]}  Ne4+ {[%clk 0:00:04]} 62. Ke5 {[%clk 0:00:05]}  Nd2 {[%clk 0:00:04]} 63. Ne7+ {[%clk 0:00:05]}  Kf7 {[%clk 0:00:05]} 64. Nf5+ {[%clk 0:00:05]}  Kg6 {[%clk 0:00:05]} 65. Rg7+ {[%clk 0:00:05]}  Kh5 {[%clk 0:00:05]} 66. Ng3+ {[%clk 0:00:05]}  Kh6 {[%clk 0:00:05]} 67. Rg8 {[%clk 0:00:03]}  Re1+ {[%clk 0:00:04]} 68. Kd4 {[%clk 0:00:02]}  Rd1 {[%clk 0:00:04]} 69. Ke3 {[%clk 0:00:02]}  Nf1+ {[%clk 0:00:04]} 70. Kf2 {[%clk 0:00:02]}  Nxg3 {[%clk 0:00:04]} 71. Kxg3 {[%clk 0:00:02]}  Rg1+ {[%clk 0:00:04]} 72. Kf2 {[%clk 0:00:02]}  Rxg8 {[%clk 0:00:05]} 0-1


[Site "https://www.chess.com"]

[Event "Titled Tuesday Blitz May 31 Early 2022"]
[White "Petrovskyi, Vadym"]
[Black "Ambartsumova, Karina"]
[WhiteFideId "14165210"]
[BlackFideId "4166299"]
[WhiteElo "2400"]
[BlackElo "2262"]
[Result "1-0"]
[Round "07"]
[TimeControl "180+1"]
[Date "2022.05.31"]
[WhiteClock "0:01:11"]
[BlackClock "0:00:03"]

1. e4 {[%clk 0:02:51]}  e5 {[%clk 0:03:00]} 2. Nf3 {[%clk 0:02:50]}  Nc6 {[%clk 0:03:00]} 3. Bb5 {[%clk 0:02:48]}  a6 {[%clk 0:03:00]} 4. Ba4 {[%clk 0:02:48]}  Nf6 {[%clk 0:03:00]} 5. O-O {[%clk 0:02:47]}  Be7 {[%clk 0:03:01]} 6. Re1 {[%clk 0:02:45]}  b5 {[%clk 0:03:01]} 7. Bb3 {[%clk 0:02:45]}  O-O {[%clk 0:03:01]} 8. h3 {[%clk 0:02:45]}  Bb7 {[%clk 0:02:59]} 9. c3 {[%clk 0:02:42]}  d5 {[%clk 0:02:53]} 10. exd5 {[%clk 0:02:15]}  Nxd5 {[%clk 0:02:54]} 11. d4 {[%clk 0:01:32]}  exd4 {[%clk 0:02:41]} 12. cxd4 {[%clk 0:01:33]}  Bf6 {[%clk 0:02:33]} 13. Nc3 {[%clk 0:01:30]}  Nxc3 {[%clk 0:02:22]} 14. bxc3 {[%clk 0:01:31]}  Na5 {[%clk 0:02:21]} 15. Bc2 {[%clk 0:01:29]}  Nc4 {[%clk 0:01:45]} 16. Bf4 {[%clk 0:01:25]}  c5 {[%clk 0:01:38]} 17. a4 {[%clk 0:01:23]}  cxd4 {[%clk 0:01:29]} 18. Nxd4 {[%clk 0:01:24]}  Re8 {[%clk 0:00:57]} 19. axb5 {[%clk 0:01:21]}  Rxe1+ {[%clk 0:00:56]} 20. Qxe1 {[%clk 0:01:21]}  Qd5 {[%clk 0:00:54]} 21. Nc6 {[%clk 0:01:18]}  Qxb5 {[%clk 0:00:45]} 22. Ne7+ {[%clk 0:01:17]}  Bxe7 {[%clk 0:00:38]} 23. Qxe7 {[%clk 0:01:18]}  Qd5 {[%clk 0:00:36]} 24. f3 {[%clk 0:01:16]}  f5 {[%clk 0:00:16]} 25. Rd1 {[%clk 0:01:12]}  Qb5 {[%clk 0:00:03]} 26. Rd7 {[%clk 0:01:11]} 1-0


[Site "https://www.chess.com"]

[Event "Titled Tuesday Blitz May 31 Early 2022"]
[White "Reprintsev, Alexander"]
[Black "Tong, Hai Anh"]
[WhiteFideId "14100541"]
[BlackFideId "12412805"]
[WhiteElo "2108"]
[BlackElo "1467"]
[Result "1-0"]
[Round "07"]
[TimeControl "180+1"]
[Date "2022.06.01"]
[WhiteClock "0:00:08"]
[BlackClock "0:00:01"]

1. e4 {[%clk 0:02:58]}  c6 {[%clk 0:03:00]} 2. Nc3 {[%clk 0:02:56]}  d5 {[%clk 0:03:01]} 3. Nf3 {[%clk 0:02:56]}  dxe4 {[%clk 0:03:01]} 4. Nxe4 {[%clk 0:02:56]}  Nf6 {[%clk 0:03:02]} 5. Qe2 {[%clk 0:02:56]}  Nxe4 {[%clk 0:03:01]} 6. Qxe4 {[%clk 0:02:56]}  Nd7 {[%clk 0:03:02]} 7. Bc4 {[%clk 0:02:55]}  Nf6 {[%clk 0:03:03]} 8. Qe2 {[%clk 0:02:53]}  Bf5 {[%clk 0:02:58]} 9. d3 {[%clk 0:02:52]}  e6 {[%clk 0:02:57]} 10. Bd2 {[%clk 0:02:44]}  Be7 {[%clk 0:02:54]} 11. O-O-O {[%clk 0:02:43]}  b5 {[%clk 0:02:50]} 12. Bb3 {[%clk 0:02:42]}  a5 {[%clk 0:02:51]} 13. a4 {[%clk 0:02:23]}  Nd5 {[%clk 0:02:41]} 14. Ne5 {[%clk 0:02:17]}  Qc7 {[%clk 0:02:25]} 15. g4 {[%clk 0:02:12]}  Bg6 {[%clk 0:02:24]} 16. f4 {[%clk 0:02:11]}  Nb6 {[%clk 0:02:14]} 17. f5 {[%clk 0:02:05]}  exf5 {[%clk 0:02:13]} 18. gxf5 {[%clk 0:02:04]}  bxa4 {[%clk 0:02:10]} 19. fxg6 {[%clk 0:02:03]}  axb3 {[%clk 0:02:09]} 20. gxf7+ {[%clk 0:02:04]}  Kf8 {[%clk 0:02:07]} 21. cxb3 {[%clk 0:02:03]}  a4 {[%clk 0:02:03]} 22. Qh5 {[%clk 0:01:33]}  axb3 {[%clk 0:01:52]} 23. Ng6+ {[%clk 0:01:33]}  hxg6 {[%clk 0:01:53]} 24. Qxh8+ {[%clk 0:01:33]}  Kxf7 {[%clk 0:01:54]} 25. Rdf1+ {[%clk 0:01:33]}  Bf6 {[%clk 0:01:54]} 26. Rxf6+ {[%clk 0:01:33]}  Kxf6 {[%clk 0:01:54]} 27. Bc3+ {[%clk 0:01:30]}  Ke6 {[%clk 0:01:48]} 28. Re1+ {[%clk 0:01:27]}  Kd5 {[%clk 0:01:40]} 29. Qh4 {[%clk 0:00:58]}  Ra1+ {[%clk 0:01:33]} 30. Kd2 {[%clk 0:00:58]}  Rxe1 {[%clk 0:01:34]} 31. Kxe1 {[%clk 0:00:58]}  Nd7 {[%clk 0:00:46]} 32. Qe4+ {[%clk 0:00:48]}  Kc5 {[%clk 0:00:42]} 33. Qb4+ {[%clk 0:00:47]}  Kd5 {[%clk 0:00:40]} 34. Qxb3+ {[%clk 0:00:48]}  Kd6 {[%clk 0:00:39]} 35. Qb4+ {[%clk 0:00:48]}  c5 {[%clk 0:00:40]} 36. Qf4+ {[%clk 0:00:48]}  Kc6 {[%clk 0:00:40]} 37. Qxc7+ {[%clk 0:00:46]}  Kxc7 {[%clk 0:00:41]} 38. Bxg7 {[%clk 0:00:46]}  Nb6 {[%clk 0:00:42]} 39. Ke2 {[%clk 0:00:44]}  Kc6 {[%clk 0:00:42]} 40. Kf3 {[%clk 0:00:44]}  Kd5 {[%clk 0:00:40]} 41. Kg4 {[%clk 0:00:44]}  Ke6 {[%clk 0:00:40]} 42. Bf8 {[%clk 0:00:40]}  c4 {[%clk 0:00:34]} 43. dxc4 {[%clk 0:00:32]}  Nxc4 {[%clk 0:00:34]} 44. b4 {[%clk 0:00:32]}  Kf7 {[%clk 0:00:28]} 45. Bc5 {[%clk 0:00:31]}  Ke6 {[%clk 0:00:28]} 46. Kg5 {[%clk 0:00:31]}  Kf7 {[%clk 0:00:28]} 47. Kf4 {[%clk 0:00:31]}  Ke6 {[%clk 0:00:27]} 48. Ke4 {[%clk 0:00:31]}  Ne5 {[%clk 0:00:27]} 49. b5 {[%clk 0:00:28]}  Nd7 {[%clk 0:00:24]} 50. Bd4 {[%clk 0:00:27]}  Kd6 {[%clk 0:00:18]} 51. Kf4 {[%clk 0:00:27]}  Kd5 {[%clk 0:00:18]} 52. Bf2 {[%clk 0:00:26]}  Ne5 {[%clk 0:00:18]} 53. b6 {[%clk 0:00:22]}  Nd3+ {[%clk 0:00:14]} 54. Ke3 {[%clk 0:00:19]}  Nc5 {[%clk 0:00:14]} 55. Kf3 {[%clk 0:00:18]}  Nb7 {[%clk 0:00:13]} 56. Kg4 {[%clk 0:00:18]}  Ke6 {[%clk 0:00:12]} 57. Kg5 {[%clk 0:00:18]}  Kf7 {[%clk 0:00:13]} 58. Bd4 {[%clk 0:00:18]}  Nd6 {[%clk 0:00:11]} 59. Kf4 {[%clk 0:00:14]}  Nb7 {[%clk 0:00:11]} 60. Bc3 {[%clk 0:00:12]}  Ke6 {[%clk 0:00:12]} 61. Bb4 {[%clk 0:00:12]}  Kf7 {[%clk 0:00:11]} 62. Ke5 {[%clk 0:00:12]}  Nd8 {[%clk 0:00:09]} 63. Kd5 {[%clk 0:00:12]}  Ke8 {[%clk 0:00:09]} 64. Kd6 {[%clk 0:00:12]}  g5 {[%clk 0:00:08]} 65. Kc7 {[%clk 0:00:11]}  Ne6+ {[%clk 0:00:07]} 66. Kc8 {[%clk 0:00:11]}  Nd8 {[%clk 0:00:06]} 67. h3 {[%clk 0:00:08]}  Nc6 {[%clk 0:00:02]} 68. Bd2 {[%clk 0:00:08]}  Kf7 {[%clk 0:00:02]} 69. b7 {[%clk 0:00:08]}  Kg6 {[%clk 0:00:02]} 70. Kc7 {[%clk 0:00:09]}  Na7 {[%clk 0:00:01]} 71. b8=Q {[%clk 0:00:08]} 1-0


[Site "https://www.chess.com"]

[Event "Titled Tuesday Blitz May 31 Early 2022"]
[White "Royal, Shreyas"]
[Black "Cherniaiev, Tykhon"]
[WhiteFideId "448869"]
[BlackFideId "14182360"]
[WhiteElo "1986"]
[BlackElo "2289"]
[Result "1/2-1/2"]
[Round "07"]
[TimeControl "180+1"]
[Date "2022.06.01"]
[WhiteClock "0:00:11"]
[BlackClock "0:00:07"]

1. d4 {[%clk 0:02:39]}  Nf6 {[%clk 0:02:57]} 2. c4 {[%clk 0:02:39]}  e6 {[%clk 0:02:57]} 3. Nf3 {[%clk 0:02:39]}  d5 {[%clk 0:02:55]} 4. g3 {[%clk 0:02:39]}  Be7 {[%clk 0:02:55]} 5. Bg2 {[%clk 0:02:38]}  O-O {[%clk 0:02:55]} 6. O-O {[%clk 0:02:39]}  dxc4 {[%clk 0:02:55]} 7. Qc2 {[%clk 0:02:39]}  a6 {[%clk 0:02:54]} 8. a4 {[%clk 0:02:39]}  Bd7 {[%clk 0:02:51]} 9. Qxc4 {[%clk 0:02:39]}  b5 {[%clk 0:02:51]} 10. Qc2 {[%clk 0:02:34]}  Bc6 {[%clk 0:02:51]} 11. Nbd2 {[%clk 0:02:22]}  Bb7 {[%clk 0:02:26]} 12. axb5 {[%clk 0:02:13]}  axb5 {[%clk 0:02:25]} 13. Rxa8 {[%clk 0:02:13]}  Bxa8 {[%clk 0:02:26]} 14. Rd1 {[%clk 0:02:09]}  Nbd7 {[%clk 0:02:21]} 15. Ne5 {[%clk 0:02:03]}  Bxg2 {[%clk 0:01:50]} 16. Kxg2 {[%clk 0:02:04]}  Nxe5 {[%clk 0:01:37]} 17. dxe5 {[%clk 0:02:05]}  Qa8+ {[%clk 0:01:37]} 18. Nf3 {[%clk 0:02:00]}  Nd5 {[%clk 0:01:36]} 19. e4 {[%clk 0:01:57]}  Nb4 {[%clk 0:01:32]} 20. Qxc7 {[%clk 0:01:57]}  Re8 {[%clk 0:01:30]} 21. Rd7 {[%clk 0:01:51]}  Na6 {[%clk 0:01:03]} 22. Qb6 {[%clk 0:01:46]}  Rb8 {[%clk 0:00:17]} 23. Qa7 {[%clk 0:01:46]}  Bc5 {[%clk 0:00:17]} 24. Qxa8 {[%clk 0:01:42]}  Rxa8 {[%clk 0:00:18]} 25. Ng5 {[%clk 0:01:32]}  Rf8 {[%clk 0:00:17]} 26. Rb7 {[%clk 0:01:32]}  b4 {[%clk 0:00:10]} 27. Kf3 {[%clk 0:01:22]}  h6 {[%clk 0:00:08]} 28. Nh3 {[%clk 0:01:22]}  Rc8 {[%clk 0:00:08]} 29. Nf4 {[%clk 0:01:18]}  Bxf2 {[%clk 0:00:08]} 30. Kxf2 {[%clk 0:01:05]}  Rxc1 {[%clk 0:00:07]} 31. Rb6 {[%clk 0:01:03]}  Nc5 {[%clk 0:00:06]} 32. Rxb4 {[%clk 0:01:01]}  Rc2+ {[%clk 0:00:06]} 33. Ke3 {[%clk 0:00:55]}  Rxh2 {[%clk 0:00:07]} 34. Rc4 {[%clk 0:00:53]}  Nb3 {[%clk 0:00:06]} 35. Rc3 {[%clk 0:00:52]}  Rxb2 {[%clk 0:00:05]} 36. Nd3 {[%clk 0:00:52]}  Rb1 {[%clk 0:00:06]} 37. Rc8+ {[%clk 0:00:51]}  Kh7 {[%clk 0:00:06]} 38. Rb8 {[%clk 0:00:52]}  Nd2 {[%clk 0:00:05]} 39. Rf8 {[%clk 0:00:52]}  Nc4+ {[%clk 0:00:04]} 40. Kd4 {[%clk 0:00:52]}  Nb2 {[%clk 0:00:03]} 41. Rb8 {[%clk 0:00:50]}  Rg1 {[%clk 0:00:02]} 42. Rxb2 {[%clk 0:00:49]}  Rxg3 {[%clk 0:00:02]} 43. Rf2 {[%clk 0:00:50]}  Kg8 {[%clk 0:00:02]} 44. Kc3 {[%clk 0:00:47]}  h5 {[%clk 0:00:03]} 45. Kd2 {[%clk 0:00:46]}  h4 {[%clk 0:00:03]} 46. Ke2 {[%clk 0:00:41]}  g5 {[%clk 0:00:04]} 47. Rf3 {[%clk 0:00:40]}  Rg2+ {[%clk 0:00:04]} 48. Rf2 {[%clk 0:00:39]}  Rg3 {[%clk 0:00:04]} 49. Rh2 {[%clk 0:00:36]}  Kg7 {[%clk 0:00:04]} 50. Ne1 {[%clk 0:00:33]}  f6 {[%clk 0:00:04]} 51. Nf3 {[%clk 0:00:30]}  fxe5 {[%clk 0:00:04]} 52. Nxe5 {[%clk 0:00:29]}  Ra3 {[%clk 0:00:05]} 53. Rh1 {[%clk 0:00:22]}  Kf6 {[%clk 0:00:05]} 54. Nd3 {[%clk 0:00:23]}  Kg6 {[%clk 0:00:04]} 55. Ke3 {[%clk 0:00:21]}  Kh5 {[%clk 0:00:04]} 56. Kd4 {[%clk 0:00:21]}  g4 {[%clk 0:00:02]} 57. Nf4+ {[%clk 0:00:21]}  Kg5 {[%clk 0:00:03]} 58. Nxe6+ {[%clk 0:00:21]}  Kh5 {[%clk 0:00:03]} 59. Nf4+ {[%clk 0:00:22]}  Kg5 {[%clk 0:00:03]} 60. Nd3 {[%clk 0:00:20]}  h3 {[%clk 0:00:03]} 61. Nf2 {[%clk 0:00:19]}  Kh4 {[%clk 0:00:03]} 62. e5 {[%clk 0:00:18]}  Rf3 {[%clk 0:00:03]} 63. Ne4 {[%clk 0:00:18]}  g3 {[%clk 0:00:03]} 64. e6 {[%clk 0:00:16]}  Rf8 {[%clk 0:00:03]} 65. Nxg3 {[%clk 0:00:11]}  Kxg3 {[%clk 0:00:04]} 66. Ke5 {[%clk 0:00:11]}  h2 {[%clk 0:00:05]} 67. Rxh2 {[%clk 0:00:10]}  Kxh2 {[%clk 0:00:05]} 68. Kd6 {[%clk 0:00:11]}  Kg3 {[%clk 0:00:06]} 69. e7 {[%clk 0:00:08]}  Ra8 {[%clk 0:00:06]} 70. Kd7 {[%clk 0:00:09]}  Ra7+ {[%clk 0:00:06]} 71. Kd8 {[%clk 0:00:10]}  Ra8+ {[%clk 0:00:06]} 72. Kd7 {[%clk 0:00:10]}  Kf4 {[%clk 0:00:06]} 73. e8=Q {[%clk 0:00:10]}  Rxe8 {[%clk 0:00:07]} 74. Kxe8 {[%clk 0:00:11]} 1/2-1/2


[Site "https://www.chess.com"]

[Event "Titled Tuesday Blitz May 31 Early 2022"]
[White "Salinas Herrera, Pablo"]
[Black "Barria Zuniga, Daniel"]
[WhiteFideId "3407128"]
[BlackFideId "3400816"]
[WhiteElo "2541"]
[BlackElo "2414"]
[Result "0-1"]
[Round "07"]
[TimeControl "180+1"]
[Date "2022.06.01"]
[WhiteClock "0:00:01"]
[BlackClock "0:00:01"]

1. d4 {[%clk 0:03:00]}  e6 {[%clk 0:02:50]} 2. Nf3 {[%clk 0:02:59]}  f5 {[%clk 0:02:50]} 3. g3 {[%clk 0:02:59]}  b6 {[%clk 0:02:48]} 4. Bg2 {[%clk 0:02:59]}  Bb7 {[%clk 0:02:49]} 5. O-O {[%clk 0:03:00]}  Nf6 {[%clk 0:02:49]} 6. c4 {[%clk 0:03:00]}  Na6 {[%clk 0:02:42]} 7. a3 {[%clk 0:02:56]}  Be7 {[%clk 0:02:41]} 8. Nc3 {[%clk 0:02:44]}  O-O {[%clk 0:02:41]} 9. d5 {[%clk 0:02:43]}  Nc5 {[%clk 0:02:32]} 10. Nd4 {[%clk 0:02:42]}  a5 {[%clk 0:02:00]} 11. b3 {[%clk 0:02:13]}  Nfe4 {[%clk 0:01:47]} 12. Nxe4 {[%clk 0:02:12]}  Nxe4 {[%clk 0:01:46]} 13. Bb2 {[%clk 0:02:06]}  Bf6 {[%clk 0:01:40]} 14. Qc2 {[%clk 0:01:36]}  exd5 {[%clk 0:01:30]} 15. cxd5 {[%clk 0:01:35]}  Bxd5 {[%clk 0:01:30]} 16. Rad1 {[%clk 0:01:36]}  c6 {[%clk 0:01:29]} 17. Nxf5 {[%clk 0:00:41]}  Bxb2 {[%clk 0:01:04]} 18. Bxe4 {[%clk 0:00:40]}  Bxe4 {[%clk 0:00:48]} 19. Qxe4 {[%clk 0:00:41]}  d5 {[%clk 0:00:42]} 20. Qe6+ {[%clk 0:00:38]}  Kh8 {[%clk 0:00:42]} 21. Ne3 {[%clk 0:00:14]}  Bxa3 {[%clk 0:00:39]} 22. Qxc6 {[%clk 0:00:14]}  Bc5 {[%clk 0:00:32]} 23. Nxd5 {[%clk 0:00:13]}  Rc8 {[%clk 0:00:30]} 24. Qb5 {[%clk 0:00:13]}  Qg5 {[%clk 0:00:28]} 25. e3 {[%clk 0:00:13]}  Qg6 {[%clk 0:00:20]} 26. Nf4 {[%clk 0:00:12]}  Qf7 {[%clk 0:00:19]} 27. Rd3 {[%clk 0:00:10]}  g5 {[%clk 0:00:11]} 28. Nd5 {[%clk 0:00:09]}  Rcd8 {[%clk 0:00:11]} 29. Qc4 {[%clk 0:00:09]}  Rd6 {[%clk 0:00:09]} 30. Rd2 {[%clk 0:00:05]}  h6 {[%clk 0:00:05]} 31. Rfd1 {[%clk 0:00:05]}  Kg7 {[%clk 0:00:03]} 32. h4 {[%clk 0:00:05]}  Qf5 {[%clk 0:00:01]} 33. hxg5 {[%clk 0:00:05]}  hxg5 {[%clk 0:00:01]} 34. Qc3+ {[%clk 0:00:05]}  Kg6 {[%clk 0:00:02]} 35. Qc4 {[%clk 0:00:05]}  Rf7 {[%clk 0:00:01]} 36. Kg2 {[%clk 0:00:04]}  Qf3+ {[%clk 0:00:01]} 37. Kg1 {[%clk 0:00:05]}  Rh7 {[%clk 0:00:02]} 38. Qd3+ {[%clk 0:00:02]}  Kg7 {[%clk 0:00:02]} 39. Qxh7+ {[%clk 0:00:01]}  Kxh7 {[%clk 0:00:02]} 40. e4 {[%clk 0:00:01]}  Rh6 {[%clk 0:00:01]} 0-1


[Site "https://www.chess.com"]